fUSD/lending_fUSD_20240104
["ID","MTS","AMOUNT","RATE_DAILY","PERIOD"]
[310098083,1704327065920,-500.0,0.00033698,2]
[310098084,1704327065929,-500.0,0.00033698,2]
[310098085,1704327065939,-500.0,0.00033698,2]
[310098086,1704327065949,-500.0,0.00033698,2]
[310098087,1704327065959,-500.0,0.00033698,2]
[310098088,1704327065968,-500.0,0.00033698,2]
[310098089,1704327065978,-500.0,0.00033698,2]
[310098090,1704327065989,-500.0,0.00033698,2]
[310098091,1704327065998,-510.25028002,0.00033698,2]
[310098092,1704327066009,-542.8,0.00033698,2]
[310098093,1704327066022,-500.0,0.00033698,2]
[310098094,1704327066032,-500.0,0.00033698,2]
[310098095,1704327066042,-500.0,0.00033698,2]
[310098096,1704327066053,-500.0,0.00033698,2]
[310098097,1704327066063,-500.0,0.00033698,2]
[310098098,1704327066073,-500.0,0.00033698,2]
[310098099,1704327066083,-500.0,0.00033698,2]
[310098100,1704327066094,-227.08001472,0.00033698,2]
[310098101,1704327066104,-500.0,0.00033698,2]
[310098102,1704327066114,-500.0,0.00033698,2]
[310098103,1704327066124,-500.0,0.00033698,2]
[310098104,1704327066135,-500.0,0.00033698,2]
[310098105,1704327066145,-1506.71,0.00033698,2]
[310098106,1704327066154,-500.0,0.00033698,2]
[310098107,1704327066165,-500.0,0.00033698,2]
[310098108,1704327066174,-500.0,0.00033698,2]
[310098109,1704327066184,-500.0,0.00033698,2]
[310098110,1704327066194,-500.0,0.00033698,2]
[310098111,1704327066204,-500.0,0.00033698,2]
[310098112,1704327066214,-500.0,0.00033698,2]
[310098113,1704327066224,-500.0,0.00033698,2]
[310098114,1704327066234,-500.0,0.00033698,2]
[310098115,1704327066244,-500.0,0.00033698,2]
[310098116,1704327066255,-500.0,0.00033698,2]
[310098117,1704327066264,-500.0,0.00033698,2]
[310098118,1704327066274,-2550.33,0.00033698,2]
[310098119,1704327066285,-500.0,0.00033698,2]
[310098120,1704327066296,-500.0,0.00033698,2]
[310098121,1704327066306,-500.0,0.00033698,2]
[310098122,1704327066316,-500.0,0.00033698,2]
[310098123,1704327066326,-712.89,0.00033698,2]
[310098124,1704327066336,-630.54894095,0.00033698,2]
[310098125,1704327066346,-500.0,0.00033698,2]
[310098126,1704327066356,-500.0,0.00033698,2]
[310098127,1704327066366,-572.8,0.00033698,2]
[310098128,1704327066375,-500.0,0.00033698,2]
[310098129,1704327066385,-500.0,0.00033698,2]
[310098130,1704327066395,-588.35905052,0.00033698,2]
[310098131,1704327066406,-510.64643254,0.00033698,2]
[310098132,1704327066416,-500.0,0.00033698,2]
[310098133,1704327066426,-500.0,0.00033698,2]
[310098134,1704327066437,-500.0,0.00033698,2]
[310098135,1704327066447,-500.0,0.00033698,2]
[310098136,1704327066458,-500.0,0.00033698,2]
[310098137,1704327066468,-500.0,0.00033698,2]
[310098138,1704327066479,-511.34,0.00033698,2]
[310098139,1704327066491,-500.0,0.00033698,2]
[310098140,1704327066503,-500.0,0.00033698,2]
[310098141,1704327066515,-500.0,0.00033698,2]
[310098142,1704327066526,-270.50749566,0.00033698,2]
[310098143,1704327066537,-464.4,0.00033698,2]
[310098144,1704327066547,-500.0,0.00033698,2]
[310098145,1704327066558,-500.0,0.00033698,2]
[310098146,1704327066568,-500.0,0.00033698,2]
[310098147,1704327066578,-548.55,0.00033698,2]
[310098148,1704327066589,-500.0,0.00033698,2]
[310098149,1704327066599,-500.0,0.00033698,2]
[310098150,1704327066610,-500.0,0.00033698,2]
[310098151,1704327066619,-500.0,0.00033698,2]
[310098152,1704327066630,-500.0,0.00033698,2]
[310098153,1704327066639,-500.0,0.00033698,2]
[310098154,1704327066650,-500.0,0.00033698,2]
[310098155,1704327066660,-157.35923796,0.00033698,2]
[310098156,1704327066670,-500.0,0.00033698,2]
[310098157,1704327066679,-500.0,0.00033698,2]
[310098158,1704327066689,-500.0,0.00033698,2]
[310098159,1704327066699,-529.04,0.00033698,2]
[310098160,1704327066756,-500.0,0.00033698,2]
[310098161,1704327066768,-603.95990547,0.00033698,2]
[310098162,1704327066777,-500.0,0.00033698,2]
[310098163,1704327066787,-500.0,0.00033698,2]
[310098164,1704327066797,-500.0,0.00033698,2]
[310098165,1704327066806,-500.0,0.00033698,2]
[310098166,1704327066815,-379.3,0.00033698,2]
[310098167,1704327066825,-500.0,0.00033698,2]
[310098168,1704327066834,-511.91,0.00033698,2]
[310098169,1704327066844,-500.0,0.00033698,2]
[310098170,1704327066853,-500.0,0.00033698,2]
[310098171,1704327066862,-500.0,0.00033698,2]
[310098172,1704327066872,-500.0,0.00033698,2]
[310098173,1704327066882,-525.9203402,0.00033698,2]
[310098174,1704327066891,-313.65176868,0.00033698,2]
[310098175,1704327066911,-500.0,0.00033698,2]
[310098176,1704327066922,-500.0,0.00033698,2]
[310098177,1704327066932,-500.0,0.00033698,2]
[310098178,1704327066942,-500.0,0.00033698,2]
[310098179,1704327066952,-500.0,0.00033698,2]
[310098180,1704327066962,-500.0,0.00033698,2]
[310098181,1704327066971,-500.0,0.00033698,2]
[310098182,1704327066982,-500.0,0.00033698,2]
[310098183,1704327066991,-500.0,0.00033698,2]
[310098184,1704327067001,-500.0,0.00033698,2]
[310098185,1704327067010,-500.0,0.00033698,2]
[310098186,1704327067021,-828.12,0.00033698,2]
[310098187,1704327067032,-500.96909157,0.00033698,2]
[310098188,1704327067042,-500.0,0.00033698,2]
[310098189,1704327067051,-686.0,0.00033698,2]
[310098190,1704327067061,-500.0,0.00033698,2]
[310098191,1704327067071,-500.0,0.00033698,2]
[310098192,1704327067081,-500.0,0.00033698,2]
[310098193,1704327067091,-612.25630234,0.00033698,2]
[310098194,1704327067100,-507.88,0.00033698,2]
[310098195,1704327067110,-500.0,0.00033698,2]
[310098196,1704327067120,-151.28,0.00033698,2]
[310098197,1704327067129,-500.0,0.00033698,2]
[310098198,1704327067139,-500.0,0.00033698,2]
[310098199,1704327067149,-500.0,0.00033698,2]
[310098200,1704327067160,-500.0,0.00033698,2]
[310098201,1704327067171,-417.82556814,0.00033698,2]
[310098202,1704327067182,-500.0,0.00033698,2]
[310098203,1704327067193,-514.32445604,0.00033698,2]
[310098204,1704327067202,-500.0,0.00033698,2]
[310098205,1704327067213,-500.0,0.00033698,2]
[310098206,1704327067224,-500.0,0.00033698,2]
[310098207,1704327067234,-500.0,0.00033698,2]
[310098208,1704327067245,-1192.42,0.00033698,2]
[310098209,1704327067256,-500.0,0.00033698,2]
[310098210,1704327067268,-551.15789808,0.00033698,2]
[310098211,1704327067279,-500.0,0.00033698,2]
[310098212,1704327067290,-500.0,0.00033698,2]
[310098213,1704327067300,-500.0,0.00033698,2]
[310098214,1704327067311,-500.0,0.00033698,2]
[310098215,1704327067322,-500.0,0.00033698,2]
[310098216,1704327067333,-500.0,0.00033698,2]
[310098217,1704327067344,-500.0,0.00033698,2]
[310098218,1704327067354,-710.98,0.00033698,2]
[310098219,1704327067364,-500.0,0.00033698,2]
[310098220,1704327067375,-500.0,0.00033698,2]
[310098221,1704327067387,-602.46615844,0.00033698,2]
[310098222,1704327067398,-633.43,0.00033698,2]
[310098223,1704327067409,-500.0,0.00033698,2]
[310098224,1704327067420,-500.0,0.00033698,2]
[310098225,1704327067431,-500.0,0.00033698,2]
[310098226,1704327067440,-500.0,0.00033698,2]
[310098227,1704327067450,-500.0,0.00033698,2]
[310098228,1704327067461,-500.0,0.00033698,2]
[310098229,1704327067471,-500.0,0.00033698,2]
[310098230,1704327067481,-500.0,0.00033698,2]
[310098231,1704327067491,-500.0,0.00033698,2]
[310098232,1704327067502,-500.0,0.00033698,2]
[310098233,1704327067515,-639.22,0.00033698,2]
[310098234,1704327067527,-500.0,0.00033698,2]
[310098235,1704327067538,-9332.74,0.00033698,2]
[310098236,1704327067551,-500.0,0.00033698,2]
[310098237,1704327067561,-685.85,0.00033698,2]
[310098238,1704327067572,-500.0,0.00033698,2]
[310098239,1704327067587,-500.0,0.00033698,2]
[310098240,1704327067597,-500.0,0.00033698,2]
[310098241,1704327067610,-500.0,0.00033698,2]
[310098242,1704327067620,-500.0,0.00033698,2]
[310098243,1704327067631,-548.5,0.00033698,2]
[310098244,1704327067642,-728.85,0.00033698,2]
[310098245,1704327067652,-500.0,0.00033698,2]
[310098246,1704327067664,-265.47042812,0.00033698,2]
[310098247,1704327067674,-500.0,0.00033698,2]
[310098248,1704327067686,-500.0,0.00033698,2]
[310098249,1704327067697,-568.03,0.00033698,2]
[310098250,1704327067708,-500.0,0.00033698,2]
[310098251,1704327067719,-500.0,0.00033698,2]
[310098252,1704327067730,-4566.94,0.00033698,2]
[310098253,1704327067741,-1782.96,0.00033698,2]
[310098254,1704327067752,-566.2242391,0.00033698,2]
[310098255,1704327067763,-500.0,0.00033698,2]
[310098256,1704327067775,-500.0,0.00033698,2]
[310098257,1704327067785,-1282.21,0.00033698,2]
[310098258,1704327067796,-916.13,0.00033698,2]
[310098259,1704327067806,-386.59953628,0.00033698,2]
[310098260,1704327067816,-500.0,0.00033698,2]
[310098261,1704327067828,-500.0,0.00033698,2]
[310098262,1704327067840,-500.0,0.00033698,2]
[310098263,1704327067850,-346.14070346,0.00033698,2]
[310098264,1704327067860,-1880.81,0.00033698,2]
[310098265,1704327067870,-825.19,0.00033698,2]
[310098266,1704327067882,-695.11,0.00033698,2]
[310098267,1704327067896,-500.0,0.00033698,2]
[310098268,1704327067907,-474.27,0.00033698,2]
[310098269,1704327067916,-500.0,0.00033698,2]
[310098270,1704327067926,-500.0,0.00033698,2]
[310098271,1704327067938,-500.0,0.00033698,2]
[310098272,1704327067949,-500.0,0.00033698,2]
[310098273,1704327067960,-500.0,0.00033698,2]
[310098274,1704327067970,-6652.48,0.00033698,2]
[310098275,1704327067979,-500.0,0.00033698,2]
[310098276,1704327067989,-500.0,0.00033698,2]
[310098277,1704327067998,-500.0,0.00033698,2]
[310098278,1704327068008,-500.0,0.00033698,2]
[310098279,1704327068019,-500.0,0.00033698,2]
[310098280,1704327068028,-2180.83,0.00033698,2]
[310098281,1704327068038,-500.0,0.00033698,2]
[310098282,1704327068048,-500.0,0.00033698,2]
[310098283,1704327068057,-500.0,0.00033698,2]
[310098284,1704327068067,-500.0,0.00033698,2]
[310098285,1704327068077,-500.0,0.00033698,2]
[310098286,1704327068087,-500.0,0.00033698,2]
[310098287,1704327068096,-500.0,0.00033698,2]
[310098288,1704327068106,-500.0,0.00033698,2]
[310098289,1704327068116,-7356.21,0.00033698,2]
[310098290,1704327068126,-571.5,0.00033698,2]
[310098291,1704327068137,-500.0,0.00033698,2]
[310098292,1704327068147,-500.0,0.00033698,2]
[310098293,1704327068158,-556.5,0.00033698,2]
[310098294,1704327068167,-500.0,0.00033698,2]
[310098295,1704327068178,-500.0,0.00033698,2]
[310098296,1704327068188,-582.44,0.00033698,2]
[310098297,1704327068198,-500.0,0.00033698,2]
[310098298,1704327068208,-500.0,0.00033698,2]
[310098299,1704327068218,-1018.54,0.00033698,2]
[310098300,1704327068229,-500.0,0.00033698,2]
[310098301,1704327068239,-500.0,0.00033698,2]
[310098302,1704327068249,-500.0,0.00033698,2]
[310098303,1704327068260,-1152.6,0.00033698,2]
[310098304,1704327068274,-500.0,0.00033698,2]
[310098305,1704327068285,-3411.2,0.00033698,2]
[310098306,1704327068295,-500.0,0.00033698,2]
[310098307,1704327068306,-571.22,0.00033698,2]
[310098308,1704327068316,-500.0,0.00033698,2]
[310098309,1704327068327,-561.59,0.00033698,2]
[310098310,1704327068337,-480.0,0.00033698,2]
[310098311,1704327068346,-304.27067721,0.00033698,2]
[310098312,1704327068357,-500.0,0.00033698,2]
[310098313,1704327068367,-500.0,0.00033698,2]
[310098314,1704327068378,-500.0,0.00033698,2]
[310098315,1704327068389,-533.36,0.00033698,2]
[310098316,1704327068399,-1923.76,0.00033698,2]
[310098317,1704327068409,-500.0,0.00033698,2]
[310098318,1704327068419,-500.0,0.00033698,2]
[310098319,1704327068430,-500.0,0.00033698,2]
[310098320,1704327068439,-500.0,0.00033698,2]
[310098321,1704327068449,-500.0,0.00033698,2]
[310098322,1704327068462,-500.0,0.00033698,2]
[310098323,1704327068472,-2734.6,0.00033698,2]
[310098324,1704327068482,-500.0,0.00033698,2]
[310098325,1704327068492,-500.0,0.00033698,2]
[310098326,1704327068502,-3556.23,0.00033698,2]
[310098327,1704327068511,-507.17,0.00033698,2]
[310098328,1704327068527,-500.0,0.00033698,2]
[310098329,1704327068539,-514.42373201,0.00033698,2]
[310098330,1704327068548,-1156.75,0.00033698,2]
[310098331,1704327068558,-500.0,0.00033698,2]
[310098332,1704327068567,-500.0,0.00033698,2]
[310098333,1704327068576,-960.05,0.00033698,2]
[310098334,1704327068586,-419.17234173,0.00033698,2]
[310098335,1704327068595,-1122.47,0.00033698,2]
[310098336,1704327068604,-500.0,0.00033698,2]
[310098337,1704327068613,-1326.83,0.00033698,2]
[310098338,1704327068623,-1063.38,0.00033698,2]
[310098339,1704327068632,-500.0,0.00033698,2]
[310098340,1704327068642,-402.42220576,0.00033698,2]
[310098341,1704327068651,-500.0,0.00033698,2]
[310098342,1704327068660,-500.0,0.00033698,2]
[310098343,1704327068669,-1297.35,0.00033698,2]
[310098344,1704327068678,-500.0,0.00033698,2]
[310098345,1704327068688,-500.0,0.00033698,2]
[310098346,1704327068697,-500.0,0.00033698,2]
[310098347,1704327068707,-500.0,0.00033698,2]
[310098348,1704327068717,-500.0,0.00033698,2]
[310098349,1704327068726,-500.0,0.00033698,2]
[310098350,1704327068736,-500.0,0.00033698,2]
[310098351,1704327068746,-568.17,0.00033698,2]
[310098352,1704327068755,-1036.07,0.00033698,2]
[310098353,1704327068767,-971.55,0.00033698,2]
[310098354,1704327068777,-500.0,0.00033698,2]
[310098355,1704327068786,-500.0,0.00033698,2]
[310098356,1704327068795,-1270.48,0.00033698,2]
[310098357,1704327068805,-500.0,0.00033698,2]
[310098358,1704327068815,-618.12,0.00033698,2]
[310098359,1704327068824,-201.83295056,0.00033698,2]
[310098360,1704327068834,-1009.51,0.00033698,2]
[310098361,1704327068843,-500.0,0.00033698,2]
[310098362,1704327068853,-4813.22,0.00033698,2]
[310098363,1704327068862,-500.0,0.00033698,2]
[310098364,1704327068871,-500.0,0.00033698,5]
[310098365,1704327068880,-500.0,0.00033698,2]
[310098366,1704327068890,-500.0,0.00033698,2]
[310098367,1704327068899,-500.0,0.00033698,2]
[310098368,1704327068908,-500.0,0.00033698,2]
[310098369,1704327068917,-372.0,0.00033698,2]
[310098370,1704327068926,-500.0,0.00033698,2]
[310098371,1704327068935,-851.31,0.00033698,2]
[310098372,1704327068945,-582.52,0.00033698,2]
[310098373,1704327068955,-500.0,0.00033698,2]
[310098374,1704327068964,-525.38,0.00033698,2]
[310098375,1704327068974,-500.0,0.00033698,2]
[310098376,1704327068984,-500.0,0.00033698,2]
[310098377,1704327068994,-500.0,0.00033698,2]
[310098378,1704327069004,-618.92,0.00033698,2]
[310098379,1704327069013,-500.0,0.00033698,2]
[310098380,1704327069025,-14124.81,0.00033698,2]
[310098381,1704327069035,-500.0,0.00033698,2]
[310098382,1704327069045,-1829.99,0.00033698,2]
[310098383,1704327069054,-500.0,0.00033698,2]
[310098384,1704327069064,-500.0,0.00033698,2]
[310098385,1704327069073,-551.37236553,0.00033698,2]
[310098386,1704327069082,-571.47018198,0.00033698,2]
[310098387,1704327069092,-977.89,0.00033698,2]
[310098388,1704327069102,-3927.24,0.00033698,2]
[310098389,1704327069112,-500.0,0.00033698,2]
[310098390,1704327069121,-500.0,0.00033698,2]
[310098391,1704327069133,-500.0,0.00033698,2]
[310098392,1704327069143,-544.16,0.00033698,2]
[310098393,1704327069152,-500.0,0.00033698,2]
[310098394,1704327069162,-500.0,0.00033698,2]
[310098395,1704327069172,-500.0,0.00033698,2]
[310098396,1704327069181,-5849.52,0.00033698,2]
[310098397,1704327069191,-500.0,0.00033698,2]
[310098398,1704327069200,-500.0,0.00033698,2]
[310098399,1704327069210,-500.0,0.00033698,2]
[310098400,1704327069220,-500.0,0.00033698,2]
[310098401,1704327069230,-100719.0,0.00033699,4]
[310098402,1704327069239,-234.90996196,0.00033699,2]
[310098403,1704327069249,-159.68557021,0.00033704,2]
[310098404,1704327069259,-340.4545,0.00033707,2]
[310098405,1704327069271,-152.385129,0.00033707,2]
[310098406,1704327069280,-360.7,0.00033726,2]
[310098407,1704327069290,-154.245598,0.00033763,2]
[310098408,1704327069299,-152.385131,0.00033763,2]
[310098409,1704327069309,-1000.0,0.00033798,4]
[310098410,1704327069318,-151.40104,0.00033798,2]
[310098411,1704327069327,-358.0,0.000338,120]
[310098412,1704327069337,-1943.38144509,0.000338,2]
[310098413,1704327069348,-1400.0,0.000338,12]
[310098414,1704327069357,-153.84,0.00033806,2]
[310098415,1704327069369,-536.71,0.00033842,2]
[310098416,1704327069381,-500.0,0.00033846,2]
[310098417,1704327069392,-556.77677114,0.00033871,22]
[310098418,1704327069403,-159.68557021,0.00033871,2]
[310098419,1704327069414,-360.7,0.00033892,2]
[310098420,1704327069424,-151.40104,0.00033898,2]
[310098421,1704327069435,-500.0,0.00033899,2]
[310098422,1704327069446,-1800.0,0.000339,12]
[310098423,1704327069457,-1294.7500496,0.000339,2]
[310098424,1704327069468,-300.0,0.000339,7]
[310098425,1704327069479,-3000.0,0.000339,2]
[310098426,1704327069490,-2891.21237538,0.00033902,2]
[310098427,1704327069500,-2896.95164957,0.00033904,2]
[310098428,1704327069510,-2945.03339932,0.0003391,2]
[310098429,1704327069523,-2894.88644522,0.00033931,2]
[310098430,1704327069533,-2893.79241497,0.00033944,2]
[310098431,1704327069542,-2891.68086612,0.0003395,2]
[310098432,1704327069554,-2890.74474037,0.00033953,2]
[310098433,1704327069565,-517.26757671,0.0003396,2]
[310098434,1704327069575,-1001.04,0.00033969,2]
[310098435,1704327069587,-124412.22190173,0.0003397,10]
[310098724,1704328170107,-173.02,0.00025026,2]
[310098725,1704328170133,-350.0,0.00027,3]
[310098726,1704328170156,-765.1522,0.00027176,2]
[310098772,1704328232065,-599.75120427,0.00027176,2]
[310098773,1704328232076,-157.63543977,0.000273,2]
[310098774,1704328232085,-733.51,0.00027367,2]
[310098775,1704328232094,-731.63,0.00027382,2]
[310098776,1704328232104,-715.86,0.000274,2]
[310098777,1704328232113,-87.00067255,0.000274,2]
[310098778,1704328232125,-624.62932745,0.000274,2]
[310098779,1704328232136,-718.64,0.000274,2]
[310098780,1704328232149,-590.97187434,0.000274,2]
[310098781,1704328232180,-128.06812566,0.000274,2]
[310098782,1704328232190,-726.68,0.000274,2]
[310098783,1704328232199,-320.44692136,0.000274,2]
[310098784,1704328232210,-389.40307864,0.000274,2]
[310098785,1704328232220,-1359.44938136,0.000274,2]
[310098786,1704328232232,-215.55061864,0.000274,2]
[310098787,1704328232241,-801.41700936,0.000274,2]
[310098788,1704328232252,-10866.0,0.000275,2]
[310098789,1704328232262,-207.0,0.00028611,2]
[310098790,1704328232271,-211.54694715,0.00029,2]
[310098791,1704328232280,-400.0,0.00029,3]
[310098792,1704328232290,-403.02,0.00029295,2]
[310098793,1704328232299,-150.0,0.00031,2]
[310098794,1704328232308,-759.42,0.00031,2]
[310098795,1704328232318,-800.0,0.000312,2]
[310098796,1704328232328,-1890.69,0.00031209,2]
[310098797,1704328232338,-499.99,0.00031209,2]
[310098798,1704328232347,-318.87,0.00031209,2]
[310098799,1704328232357,-423.37,0.00031239,2]
[310098801,1704328232366,-268.68,0.00031254,2]
[310098803,1704328232375,-5614.88,0.00031283,2]
[310098805,1704328232384,-403.02,0.00031559,2]
[310098807,1704328232394,-154.41,0.00031564,2]
[310098808,1704328232403,-200.0,0.00031568,2]
[310098811,1704328232413,-271.96,0.00031822,2]
[310098813,1704328232424,-152.39,0.00031996,2]
[310098814,1704328232434,-802.1724656,0.00032,2]
[310098817,1704328232443,-1024.66768387,0.00032016,2]
[310098819,1704328232453,-155.30037119,0.00032116,4]
[310098820,1704328232462,-423.37,0.00032217,2]
[310098822,1704328232472,-162.4,0.00032255,2]
[310098824,1704328232481,-369.8097,0.00032317,2]
[310098826,1704328232491,-748.47753607,0.00032511,4]
[310098828,1704328232501,-214.82522341,0.00032641,2]
[310098830,1704328232511,-6215.44584673,0.00032666,2]
[310098832,1704328232522,-259.11941183,0.00032674,4]
[310098834,1704328232531,-523.33575676,0.00032674,4]
[310098836,1704328232541,-484.41791867,0.00032674,4]
[310098838,1704328232551,-3846.00581784,0.00032674,4]
[310098840,1704328232560,-155.21920018,0.00032674,4]
[310098842,1704328232569,-1153.94137876,0.00032674,4]
[310098845,1704328232579,-155.0,0.00032674,4]
[310098846,1704328232589,-171.29294843,0.00032674,4]
[310098848,1704328232599,-176.97824079,0.00032674,4]
[310098850,1704328232608,-547.58880873,0.00032674,4]
[310098853,1704328232618,-196.03271932,0.00032674,4]
[310098855,1704328232627,-284.37652199,0.00032674,4]
[310098856,1704328232637,-217.22348083,0.00032674,4]
[310098857,1704328232646,-2565.16492253,0.00032674,4]
[310098858,1704328232655,-445.98774099,0.00032675,4]
[310098859,1704328232664,-36365.14715561,0.00032676,2]
[310098860,1704328232679,-448.19159353,0.00032676,2]
[310098861,1704328232695,-427.83516226,0.00032676,2]
[310098862,1704328232718,-650.41397724,0.00032676,2]
[310098863,1704328232729,-492.21325743,0.00032676,2]
[310098864,1704328232741,-293.36649189,0.00032676,2]
[310098874,1704328237988,-155.0,0.00027299,2]
[310098875,1704328237998,-718.76,0.00027355,2]
[310098876,1704328238010,-707.507927,0.00032674,2]
[310098877,1704328238019,-1162.59649018,0.00032674,2]
[310098878,1704328238028,-7143.6255106,0.00032674,4]
[310098879,1704328238038,-374.31219813,0.00032675,4]
[310098880,1704328238198,-738.02526963,0.00032675,4]
[310098881,1704328238333,-16.94871428,0.00032675,4]
[310098882,1704328238344,-155.0,0.00032675,4]
[310098883,1704328238353,-2746.83211126,0.00032676,2]
[310098897,1704328240686,-372.03993255,0.00032674,4]
[310098898,1704328241359,-370.48206108,0.00032674,4]
[310098899,1704328241371,-43.97638351,0.00032676,2]
[310098909,1704328242964,-715.000001,0.00032676,2]
[310098917,1704328243026,-1367.80658825,0.00032676,2]
[310098923,1704328243091,-318.72933415,0.00032676,2]
[310098924,1704328243102,-739.4398862,0.00032676,2]
[310098925,1704328243154,-47481.55795767,0.00032676,2]
[310098926,1704328243165,-151.40104,0.00032698,2]
[310098927,1704328243174,-2500.0,0.00032719,2]
[310098928,1704328243184,-155.0,0.00032744,2]
[310098929,1704328243193,-4535.26131218,0.00032745,7]
[310098930,1704328243203,-4930.77940353,0.00032745,7]
[310098931,1704328243212,-246.53897018,0.00032745,3]
[310098932,1704328243222,-1404.90321616,0.00032745,4]
[310098933,1704328243232,-7500.0,0.00032776,2]
[310098935,1704328243242,-14877.9492,0.00032776,2]
[310098936,1704328243252,-344.797,0.00032776,2]
[310098937,1704328243263,-152.39,0.00032796,2]
[310098938,1704328243274,-151.40104,0.00032798,2]
[310098939,1704328243284,-36554.46682329,0.00032866,4]
[310098940,1704328243296,-3278.315226,0.00032866,4]
[310098941,1704328243313,-3920.77498964,0.00032866,4]
[310098942,1704328243325,-1505.0842945,0.00032866,4]
[310098943,1704328243336,-1541.389316,0.00032866,4]
[310098945,1704328243348,-1487.96,0.00032866,4]
[310098963,1704328246006,-399.1011347,0.00032675,4]
[310098964,1704328246018,-155.0,0.00032675,4]
[310098965,1704328246027,-309.43022401,0.00032675,4]
[310098966,1704328246037,-3429.36864129,0.00032675,4]
[310098967,1704328246065,-868.83719264,0.00032675,4]
[310098968,1704328246125,-2534.19198011,0.00032675,4]
[310098969,1704328246135,-748.47753607,0.00032675,4]
[310098970,1704328246145,-14097.28784956,0.00032675,4]
[310098971,1704328246154,-256.13733899,0.00032675,4]
[310098972,1704328246163,-46138.30226547,0.00032866,4]
[310098973,1704328246175,-155.13416378,0.00032875,4]
[310098974,1704328246184,-500.0,0.00032876,2]
[310098975,1704328246194,-1546.64,0.00032876,2]
[310098976,1704328246203,-500.0,0.00032876,2]
[310098977,1704328246213,-500.0,0.00032876,2]
[310098978,1704328246222,-540.33,0.00032876,2]
[310098979,1704328246232,-500.0,0.00032876,2]
[310098980,1704328246241,-500.0,0.00032876,2]
[310098981,1704328246252,-500.0,0.00032876,2]
[310098982,1704328246263,-500.0,0.00032876,2]
[310098983,1704328246273,-500.0,0.00032876,2]
[310098984,1704328246282,-500.0,0.00032876,2]
[310098987,1704328246510,-500.0,0.00032876,2]
[310098988,1704328246520,-500.0,0.00032876,2]
[310098989,1704328246530,-500.0,0.00032876,2]
[310098990,1704328246539,-500.0,0.00032876,2]
[310098991,1704328246549,-500.0,0.00032876,2]
[310098992,1704328246558,-500.0,0.00032876,2]
[310098993,1704328246567,-500.0,0.00032876,2]
[310098994,1704328246577,-500.0,0.00032876,2]
[310098995,1704328246586,-500.0,0.00032876,2]
[310098996,1704328246596,-750.06,0.00032876,2]
[310098997,1704328246606,-1105.69,0.00032876,2]
[310098998,1704328246615,-500.0,0.00032876,2]
[310098999,1704328246625,-500.0,0.00032876,2]
[310099000,1704328246634,-500.0,0.00032876,2]
[310099001,1704328246644,-251.65,0.00032876,2]
[310099002,1704328246654,-500.0,0.00032876,2]
[310099003,1704328246664,-500.0,0.00032876,2]
[310099004,1704328246674,-697.64,0.00032876,2]
[310099005,1704328246683,-500.0,0.00032876,2]
[310099006,1704328246693,-500.0,0.00032876,2]
[310099007,1704328246702,-500.0,0.00032876,2]